fUST/lending_fUST_20240825
["ID","MTS","AMOUNT","RATE_DAILY","PERIOD"]
[335846220,1724531460457,-500.0,0.00014246,2]
[335846221,1724531460467,-774.94,0.00014246,2]
[335846222,1724531460477,-1168.85,0.00014246,2]
[335846223,1724531460486,-500.0,0.00014246,2]
[335846224,1724531460496,-500.0,0.00014246,2]
[335846225,1724531460506,-500.0,0.00014246,2]
[335846226,1724531460516,-500.0,0.00014246,2]
[335846227,1724531460525,-215.57666301,0.00014246,2]
[335846228,1724531460535,-500.0,0.00014246,2]
[335846229,1724531460547,-1085.43,0.00014246,2]
[335846230,1724531460557,-1002.47,0.00014246,2]
[335846231,1724531460575,-501.29717826,0.00014246,2]
[335846232,1724531460584,-639.11,0.00014246,2]
[335846233,1724531460594,-926.86,0.00014246,2]
[335846234,1724531460603,-500.0,0.00014246,2]
[335846235,1724531460614,-761.14,0.00014246,2]
[335846236,1724531460623,-500.0,0.00014246,2]
[335846237,1724531460633,-526.71,0.00014246,2]
[335846238,1724531460642,-744.22,0.00014246,2]
[335846239,1724531460652,-500.0,0.00014246,2]
[335846240,1724531460662,-500.0,0.00014246,2]
[335846241,1724531460672,-631.93,0.00014246,2]
[335846242,1724531460681,-500.0,0.00014246,2]
[335846243,1724531460691,-592.66,0.00014246,2]
[335846244,1724531460701,-2112.1,0.00014246,2]
[335846245,1724531460711,-884.46,0.00014246,2]
[335846246,1724531460720,-500.0,0.00014246,2]
[335846247,1724531460730,-500.0,0.00014246,2]
[335846248,1724531460741,-275.77678327,0.00014246,2]
[335846249,1724531460751,-1078.65,0.00014246,2]
[335846250,1724531460760,-2931.13,0.00014246,2]
[335846251,1724531460770,-500.0,0.00014246,2]
[335846252,1724531460780,-500.0,0.00014246,2]
[335846253,1724531460790,-304.10137877,0.00014246,2]
[335846254,1724531460804,-500.0,0.00014246,2]
[335846255,1724531460818,-618.62,0.00014246,2]
[335846256,1724531460827,-816.32,0.00014246,2]
[335846257,1724531460837,-800.21,0.00014246,2]
[335846258,1724531460847,-500.0,0.00014246,2]
[335846259,1724531460856,-781.63,0.00014246,2]
[335846260,1724531460866,-358.37252935,0.00014246,2]
[335846261,1724531460876,-500.0,0.00014246,2]
[335846262,1724531460885,-1221.12,0.00014246,2]
[335846263,1724531460895,-646.32,0.00014246,2]
[335846264,1724531460905,-500.0,0.00014246,2]
[335846265,1724531460914,-500.0,0.00014246,2]
[335846266,1724531460924,-2043.72,0.00014246,2]
[335846267,1724531460934,-500.0,0.00014246,2]
[335846268,1724531460943,-1010.23,0.00014246,2]
[335846269,1724531460954,-500.0,0.00014246,2]
[335846270,1724531460964,-766.22,0.00014246,2]
[335846271,1724531460974,-500.0,0.00014246,2]
[335846272,1724531460984,-799.71,0.00014246,2]
[335846273,1724531460994,-500.0,0.00014246,2]
[335846274,1724531461004,-502.44,0.00014246,2]
[335846275,1724531461014,-500.13,0.00014246,2]
[335846276,1724531461023,-500.0,0.00014246,2]
[335846277,1724531461033,-500.0,0.00014246,2]
[335846278,1724531461047,-578.8,0.00014246,2]
[335846279,1724531461056,-500.0,0.00014246,2]
[335846280,1724531461066,-500.0,0.00014246,2]
[335846281,1724531461076,-594.16,0.00014246,2]
[335846282,1724531461086,-500.0,0.00014246,2]
[335846283,1724531461096,-1288.02,0.00014246,2]
[335846284,1724531461106,-969.48,0.00014246,2]
[335846285,1724531461117,-500.0,0.00014246,2]
[335846286,1724531461127,-1368.37,0.00014246,2]
[335846287,1724531461137,-500.0,0.00014246,2]
[335846288,1724531461146,-1302.49,0.00014246,2]
[335846289,1724531461156,-500.0,0.00014246,2]
[335846290,1724531461165,-500.0,0.00014246,2]
[335846291,1724531461175,-500.0,0.00014246,2]
[335846292,1724531461184,-500.0,0.00014246,2]
[335846293,1724531461194,-500.0,0.00014246,2]
[335846294,1724531461361,-675.1,0.00014246,2]
[335846295,1724531461372,-500.0,0.00014246,2]
[335846296,1724531461382,-500.0,0.00014246,2]
[335846297,1724531461391,-204.63670031,0.00014246,2]
[335846298,1724531461400,-500.0,0.00014246,2]
[335846299,1724531461410,-500.0,0.00014246,2]
[335846300,1724531461420,-872.09,0.00014246,2]
[335846301,1724531461429,-852.86,0.00014246,2]
[335846302,1724531461439,-500.0,0.00014246,2]
[335846303,1724531461449,-500.0,0.00014246,2]
[335846304,1724531461459,-1320.03,0.00014246,2]
[335846305,1724531461468,-346.9180568,0.00014246,2]
[335846306,1724531461477,-2614.24,0.00014246,2]
[335846307,1724531461487,-500.0,0.00014246,2]
[335846308,1724531461496,-500.0,0.00014246,2]
[335846309,1724531461506,-1263.51,0.00014246,2]
[335846310,1724531461515,-1424.95,0.00014246,2]
[335846311,1724531461524,-2728.43,0.00014246,2]
[335846312,1724531461534,-500.0,0.00014246,2]
[335846313,1724531461544,-1292.45,0.00014246,2]
[335846314,1724531461554,-507.92,0.00014246,2]
[335846315,1724531461563,-688.45,0.00014246,2]
[335846316,1724531461572,-500.0,0.00014246,2]
[335846317,1724531461582,-1410.25,0.00014246,2]
[335846318,1724531461592,-500.0,0.00014246,2]
[335846319,1724531461602,-754.58,0.00014246,2]
[335846320,1724531461612,-2375.92,0.00014246,2]
[335846321,1724531461622,-500.0,0.00014246,2]
[335846322,1724531461631,-500.0,0.00014246,2]
[335846323,1724531461641,-1921.55,0.00014246,2]
[335846324,1724531461651,-980.6,0.00014246,2]
[335846325,1724531461660,-500.0,0.00014246,2]
[335846326,1724531461670,-500.0,0.00014246,2]
[335846327,1724531461680,-500.0,0.00014246,2]
[335846328,1724531461689,-500.0,0.00014246,2]
[335846329,1724531461699,-999.26,0.00014246,2]
[335846330,1724531461708,-1062.09,0.00014246,2]
[335846331,1724531461718,-637.81,0.00014246,2]
[335846332,1724531461727,-1225.13,0.00014246,2]
[335846333,1724531461737,-500.0,0.00014246,2]
[335846334,1724531461747,-500.0,0.00014246,2]
[335846335,1724531461757,-524.9937561,0.00014246,2]
[335846336,1724531461767,-800.8,0.00014246,2]
[335846337,1724531461777,-500.0,0.00014246,2]
[335846338,1724531461787,-500.0,0.00014246,2]
[335846339,1724531461797,-1128.59,0.00014246,2]
[335846340,1724531461807,-819.98,0.00014246,2]
[335846341,1724531461817,-515.07057939,0.00014246,2]
[335846342,1724531461827,-500.0,0.00014246,2]
[335846343,1724531461837,-548.82,0.00014246,2]
[335846344,1724531461846,-1327.62,0.00014246,2]
[335846345,1724531461855,-500.0,0.00014246,2]
[335846346,1724531461866,-1212.1,0.00014246,2]
[335846347,1724531461876,-816.93,0.00014246,2]
[335846348,1724531461886,-500.0,0.00014246,2]
[335846349,1724531461895,-1347.74,0.00014246,2]
[335846350,1724531461905,-654.44,0.00014246,2]
[335846351,1724531461915,-1183.71,0.00014246,2]
[335846352,1724531461925,-500.0,0.00014246,2]
[335846353,1724531461934,-500.0,0.00014246,2]
[335846354,1724531461944,-500.0,0.00014246,2]
[335846355,1724531461954,-500.0,0.00014246,2]
[335846356,1724531461963,-500.0,0.00014246,2]
[335846357,1724531461973,-500.0,0.00014246,2]
[335846358,1724531461983,-230.758693,0.00014246,2]
[335846359,1724531461992,-500.0,0.00014246,2]
[335846360,1724531462001,-500.0,0.00014246,2]
[335846361,1724531462011,-1399.1,0.00014246,2]
[335846362,1724531462020,-1258.48,0.00014246,2]
[335846363,1724531462030,-908.55,0.00014246,2]
[335846364,1724531462043,-669.53,0.00014246,2]
[335846365,1724531462053,-833.72,0.00014246,2]
[335846366,1724531462062,-675.35,0.00014246,2]
[335846367,1724531462071,-470.37656549,0.00014246,2]
[335846368,1724531462082,-500.0,0.00014246,2]
[335846369,1724531462091,-626.94,0.00014246,2]
[335846370,1724531462101,-500.0,0.00014246,2]
[335846371,1724531462111,-1045.54,0.00014246,2]
[335846372,1724531462125,-707.88,0.00014246,2]
[335846373,1724531462134,-1304.4,0.00014246,2]
[335846374,1724531462144,-1138.3,0.00014246,2]
[335846375,1724531462154,-1291.63,0.00014246,2]
[335846376,1724531462163,-570.1763153,0.00014246,2]
[335846377,1724531462173,-500.0,0.00014246,2]
[335846378,1724531462182,-552.5000419,0.00014246,2]
[335846379,1724531462191,-622.87,0.00014246,2]
[335846380,1724531462201,-701.54,0.00014246,2]
[335846381,1724531462212,-1511.45,0.00014246,2]
[335846382,1724531462221,-1658.12,0.00014246,2]
[335846383,1724531462230,-842.01,0.00014246,2]
[335846384,1724531462240,-500.0,0.00014246,2]
[335846385,1724531462249,-554.47192575,0.00014246,2]
[335846386,1724531462259,-500.0,0.00014246,2]
[335846387,1724531462270,-500.0,0.00014246,2]
[335846388,1724531462279,-500.0,0.00014246,2]
[335846389,1724531462289,-789.09,0.00014246,2]
[335846390,1724531462299,-615.1,0.00014246,2]
[335846391,1724531462309,-697.2,0.00014246,2]
[335846392,1724531462318,-500.0,0.00014246,2]
[335846393,1724531462328,-500.0,0.00014246,2]
[335846394,1724531462338,-805.35,0.00014246,2]
[335846395,1724531462348,-1362.32,0.00014246,2]
[335846396,1724531462358,-983.04,0.00014246,2]
[335846397,1724531462367,-624.92,0.00014246,2]
[335846398,1724531462377,-500.0,0.00014246,2]
[335846399,1724531462386,-530.79,0.00014246,2]
[335846400,1724531462396,-1060.9,0.00014246,2]
[335846401,1724531462406,-500.0,0.00014246,2]
[335846402,1724531462416,-500.0,0.00014246,2]
[335846403,1724531462426,-609.17,0.00014246,2]
[335846404,1724531462436,-569.95,0.00014246,2]
[335846405,1724531462445,-1647.52,0.00014246,2]
[335846406,1724531462455,-509.84,0.00014246,2]
[335846407,1724531462465,-500.0,0.00014246,2]
[335846408,1724531462475,-2067.06,0.00014246,2]
[335846409,1724531462485,-551.95,0.00014246,2]
[335846410,1724531462495,-2076.6,0.00014246,2]
[335846411,1724531462504,-297.03403573,0.00014246,2]
[335846412,1724531462514,-733.55,0.00014246,2]
[335846413,1724531462523,-1212.03,0.00014246,2]
[335846414,1724531462532,-824.83,0.00014246,2]
[335846415,1724531462542,-541.05,0.00014246,2]
[335846416,1724531462555,-500.0,0.00014246,2]
[335846417,1724531462565,-706.53,0.00014246,2]
[335846418,1724531462575,-500.0,0.00014246,2]
[335846419,1724531462584,-1031.72,0.00014246,2]
[335846420,1724531462594,-500.0,0.00014246,2]
[335846421,1724531462604,-500.0,0.00014246,2]
[335846422,1724531462613,-821.42,0.00014246,2]
[335846423,1724531462623,-1269.14,0.00014246,2]
[335846424,1724531462633,-500.0,0.00014246,2]
[335846425,1724531462642,-500.0,0.00014246,2]
[335846426,1724531462652,-550.91,0.00014246,2]
[335846427,1724531462662,-2330.5,0.00014246,2]
[335846428,1724531462671,-564.78,0.00014246,2]
[335846429,1724531462681,-500.0,0.00014246,2]
[335846430,1724531462692,-510.75463821,0.00014246,2]
[335846431,1724531462701,-500.0,0.00014246,2]
[335846432,1724531462711,-500.0,0.00014246,2]
[335846433,1724531462721,-500.0,0.00014246,2]
[335846434,1724531462730,-536.71,0.00014246,2]
[335846435,1724531462740,-2051.66,0.00014246,2]
[335846436,1724531462750,-500.0,0.00014246,2]
[335846437,1724531462759,-500.0,0.00014246,2]
[335846438,1724531462769,-1362.21,0.00014246,2]
[335846439,1724531462779,-555.30316768,0.00014246,2]
[335846440,1724531462788,-500.0,0.00014246,2]
[335846441,1724531462798,-5397.94,0.00014246,2]
[335846442,1724531462807,-6804.12,0.00014246,2]
[335846443,1724531462817,-648.45,0.00014246,2]
[335846444,1724531462826,-884.96,0.00014246,2]
[335846445,1724531462836,-686.18,0.00014246,2]
[335846446,1724531462845,-500.0,0.00014246,2]
[335846447,1724531462855,-1785.1,0.00014246,2]
[335846448,1724531462864,-711.95,0.00014246,2]
[335846449,1724531462874,-3273.28,0.00014246,2]
[335846450,1724531462884,-1293.47,0.00014246,2]
[335846451,1724531462894,-1164.49,0.00014246,2]
[335846452,1724531462903,-3352.92,0.00014246,2]
[335846453,1724531462912,-500.0,0.00014246,2]
[335846454,1724531462922,-487.23001748,0.00014246,2]
[335846455,1724531462931,-1003.19,0.00014246,2]
[335846456,1724531462940,-747.91,0.00014246,2]
[335846457,1724531462950,-730.3,0.00014246,2]
[335846458,1724531462960,-1036.67,0.00014246,2]
[335846459,1724531462969,-3007.21,0.00014246,2]
[335846460,1724531462979,-598.05,0.00014246,2]
[335846461,1724531462989,-1648.7,0.00014246,2]
[335846462,1724531462998,-500.0,0.00014246,2]
[335846463,1724531463007,-2248.02,0.00014246,2]
[335846464,1724531463018,-516.38483017,0.00014246,2]
[335846465,1724531463027,-940.59,0.00014246,2]
[335846466,1724531463039,-508.06096094,0.00014246,2]
[335846467,1724531463052,-896.98,0.00014246,2]
[335846468,1724531463068,-595.35638329,0.00014246,2]
[335846469,1724531463078,-155.74371176,0.00014246,2]
[335846470,1724531463090,-762.45,0.00014246,2]
[335846471,1724531463100,-500.0,0.00014246,2]
[335846472,1724531463109,-896.49,0.00014246,2]
[335846473,1724531463121,-613.35,0.00014246,2]
[335846474,1724531463131,-500.0,0.00014246,2]
[335846475,1724531463140,-7990.85,0.00014246,2]
[335846476,1724531463150,-500.0,0.00014246,2]
[335846477,1724531463160,-3087.13,0.00014246,2]
[335846478,1724531463170,-1632.06,0.00014246,2]
[335846479,1724531463180,-500.0,0.00014246,2]
[335846480,1724531463190,-570.3,0.00014246,2]
[335846481,1724531463201,-3378.83,0.00014246,2]
[335846482,1724531463211,-963.5,0.00014246,2]
[335846483,1724531463221,-2636.69,0.00014246,2]
[335846484,1724531463231,-500.0,0.00014246,2]
[335846485,1724531463240,-764.0,0.00014246,2]
[335846486,1724531463250,-644.41,0.00014246,2]
[335846487,1724531463260,-1924.56,0.00014246,2]
[335846488,1724531463270,-5273.79,0.00014246,2]
[335846489,1724531463280,-500.0,0.00014246,2]
[335846490,1724531463290,-896.55,0.00014246,2]
[335846491,1724531463300,-10892.31,0.00014246,2]
[335846492,1724531463311,-500.0,0.00014246,2]
[335846493,1724531463320,-500.0,0.00014246,2]
[335846494,1724531463330,-3022.35,0.00014246,2]
[335846495,1724531463341,-7921.53,0.00014246,2]
[335846496,1724531463351,-663.04,0.00014246,2]
[335846497,1724531463360,-500.0,0.00014246,2]
[335846498,1724531463371,-500.0,0.00014246,2]
[335846499,1724531463381,-775.53,0.00014246,2]
[335846500,1724531463392,-1062.57,0.00014246,2]
[335846501,1724531463403,-637.96,0.00014246,2]
[335846502,1724531463413,-670.81,0.00014246,2]
[335846503,1724531463423,-500.0,0.00014246,2]
[335846504,1724531463434,-1720.57,0.00014246,2]
[335846505,1724531463443,-660.87,0.00014246,2]
[335846506,1724531463453,-500.0,0.00014246,2]
[335846507,1724531463464,-802.38,0.00014246,2]
[335846508,1724531463474,-1839.52,0.00014246,2]
[335846509,1724531463483,-500.0,0.00014246,2]
[335846510,1724531463493,-22051.78,0.00014246,2]
[335846511,1724531463502,-2124.46,0.00014246,2]
[335846512,1724531463512,-823.85,0.00014246,2]
[335846513,1724531463523,-823.68,0.00014246,2]
[335846514,1724531463532,-565.75122264,0.00014246,2]
[335846515,1724531463543,-2260.21,0.00014246,2]
[335846516,1724531463556,-968.76,0.00014246,2]
[335846517,1724531463565,-4073.78,0.00014246,2]
[335846518,1724531463575,-500.0,0.00014246,2]
[335846519,1724531463586,-500.0,0.00014246,2]
[335846520,1724531463595,-500.0,0.00014246,2]
[335846521,1724531463605,-805.16,0.00014246,2]
[335846522,1724531463616,-728.77,0.00014246,2]
[335846523,1724531463626,-500.0,0.00014246,2]
[335846524,1724531463635,-9393.57,0.00014246,2]
[335846525,1724531463646,-591.04,0.00014246,2]
[335846526,1724531463656,-500.0,0.00014246,2]
[335846527,1724531463666,-548.74952933,0.00014246,2]
[335846528,1724531463676,-3343.01,0.00014246,2]
[335846529,1724531463685,-734.3,0.00014246,2]
[335846530,1724531463695,-1899.14,0.00014246,2]
[335846531,1724531463706,-1029.65,0.00014246,2]
[335846532,1724531463716,-721.66,0.00014246,2]
[335846533,1724531463726,-1502.18,0.00014246,2]
[335846534,1724531463736,-2917.34,0.00014246,2]
[335846535,1724531463745,-1262.64,0.00014246,2]
[335846536,1724531463754,-1438.33,0.00014246,2]
[335846537,1724531463764,-507.67091064,0.00014246,2]
[335846538,1724531463775,-500.0,0.00014246,2]
[335846539,1724531463786,-500.0,0.00014246,2]
[335846540,1724531463799,-3106.9,0.00014246,2]
[335846541,1724531463810,-14408.06,0.00014246,2]
[335846542,1724531463821,-2712.11,0.00014246,2]
[335846543,1724531463830,-2193.8,0.00014246,2]
[335846544,1724531463842,-2815.63,0.00014246,2]
[335846545,1724531463859,-500.0,0.00014246,2]
[335846546,1724531463870,-500.0,0.00014246,2]
[335846547,1724531463882,-2259.87,0.00014246,2]
[335846548,1724531463894,-500.0,0.00014246,2]
[335846549,1724531463905,-1129.92,0.00014246,2]
[335846550,1724531463916,-627.85,0.00014246,2]
[335846551,1724531463928,-789.7,0.00014246,2]
[335846552,1724531463938,-500.0,0.00014246,2]
[335846553,1724531463949,-500.0,0.00014246,2]
[335846554,1724531463960,-2350.51,0.00014246,2]
[335846555,1724531463971,-500.0,0.00014246,2]
[335846556,1724531463984,-741.25,0.00014246,2]
[335846557,1724531463994,-2327.67,0.00014246,2]
[335846558,1724531464004,-2773.88,0.00014246,2]
[335846559,1724531464015,-500.0,0.00014246,2]
[335846560,1724531464025,-1842.59,0.00014246,2]
[335846561,1724531464037,-4763.79,0.00014246,2]
[335846562,1724531464051,-500.0,0.00014246,2]
[335846563,1724531464061,-1819.59,0.00014246,2]
[335846564,1724531464072,-621.55,0.00014246,2]
[335846565,1724531464084,-3461.51,0.00014246,2]
[335846566,1724531464095,-1288.14,0.00014246,2]
[335846567,1724531464105,-807.08,0.00014246,2]
[335846568,1724531464116,-679.29,0.00014246,2]
[335846569,1724531464126,-509.51454632,0.00014246,2]
[335846570,1724531464137,-7396.52,0.00014246,2]
[335846571,1724531464147,-904.12,0.00014246,2]
[335846572,1724531464157,-814.15,0.00014246,2]
[335846573,1724531464167,-500.0,0.00014246,2]
[335846574,1724531464176,-20361.09,0.00014246,2]
[335846575,1724531464185,-500.0,0.00014246,2]
[335846576,1724531464195,-2226.72,0.00014246,2]
[335846577,1724531464205,-500.0,0.00014246,2]
[335846578,1724531464215,-11201.75,0.00014246,2]
[335846579,1724531464224,-10180.43,0.00014246,2]
[335846580,1724531464234,-500.0,0.00014246,2]
[335846581,1724531464244,-1538.63,0.00014246,2]
[335846582,1724531464254,-718.11,0.00014246,2]
[335846583,1724531464263,-500.0,0.00014246,2]
[335846584,1724531464272,-699.61,0.00014246,2]
[335846585,1724531464282,-2896.04,0.00014246,2]
[335846586,1724531464292,-500.0,0.00014246,2]
[335846587,1724531464305,-500.0,0.00014246,2]
[335846588,1724531464314,-3039.26,0.00014246,2]
[335846589,1724531464324,-500.0,0.00014246,2]
[335846590,1724531464334,-500.0,0.00014246,2]
[335846591,1724531464344,-2034.56,0.00014246,2]
[335846592,1724531464354,-685.31,0.00014246,2]
[335846593,1724531464364,-500.0,0.00014246,2]
[335846594,1724531464373,-388.32915679,0.00014246,2]
[335846595,1724531464383,-500.0,0.00014246,2]
[335846596,1724531464393,-1232.81,0.00014246,2]
[335846597,1724531464403,-500.0,0.00014246,2]
[335846598,1724531464413,-941.9,0.00014246,2]
[335846599,1724531464423,-1832.98,0.00014246,2]
[335846600,1724531464432,-500.0,0.00014246,2]
[335846601,1724531464442,-1070.08,0.00014246,2]
[335846602,1724531464452,-273.84556223,0.00014246,2]
[335846603,1724531464604,-11259.44,0.00014246,2]
[335846604,1724531464615,-500.0,0.00014246,2]
[335846605,1724531464625,-4136.04,0.00014246,2]
[335846606,1724531464635,-750.0,0.00014247,2]
[335846607,1724531464645,-500.0,0.00014252,7]
[335846608,1724531464657,-500.0,0.00014252,7]
[335846609,1724531464667,-500.0,0.00014252,7]
[335846610,1724531464677,-500.0,0.00014252,7]
[335846611,1724531464687,-500.0,0.00014252,7]
[335846612,1724531464696,-500.0,0.00014252,7]
[335846613,1724531464706,-500.0,0.00014252,7]
[335846614,1724531464717,-500.0,0.00014252,7]
[335846615,1724531464729,-500.0,0.00014252,7]
[335846616,1724531464741,-500.0,0.00014252,7]
[335846617,1724531464753,-500.0,0.00014252,7]
[335846618,1724531464766,-500.0,0.00014252,7]
[335846619,1724531464777,-481.99,0.00014252,7]
[335846620,1724531464786,-500.0,0.00014252,7]
[335846621,1724531464795,-150.0,0.00014273,2]
[335846622,1724531464806,-150.0,0.00014273,2]
[335846623,1724531464816,-150.0,0.0001428,2]
[335846624,1724531464826,-160.0,0.00014339,3]
[335846625,1724531464835,-1452.375908,0.00014365,2]
[335846626,1724531464845,-1352.39866,0.00014365,2]
[335846627,1724531464855,-160.0,0.00014381,4]
[335846628,1724531464865,-160.0,0.00014423,5]
[335846629,1724531464876,-160.0,0.00014464,6]
[335846630,1724531464885,-1000.0,0.000145,2]
[335846631,1724531464895,-465.0388732,0.00014504,2]
[335846632,1724531464905,-160.0,0.00014506,7]
[335846633,1724531464914,-154.72922386,0.00014519,2]
[335846634,1724531464924,-154.72922386,0.00014519,2]
[335846635,1724531464933,-413.88106461,0.00014519,2]
[335846636,1724531464943,-813.56,0.0001452,2]
[335846637,1724531464952,-500.0,0.0001452,2]
[335846638,1724531464961,-500.0,0.0001452,2]
[335846639,1724531464971,-501.03401898,0.0001452,2]
[335846640,1724531464980,-500.0,0.0001452,2]
[335846641,1724531464989,-734.4,0.0001452,2]
[335846642,1724531464999,-603.04,0.0001452,2]
[335846643,1724531465009,-430.97636479,0.0001452,2]
[335846644,1724531465019,-622.05,0.0001452,2]
[335846645,1724531465031,-500.0,0.0001452,2]
[335846646,1724531465045,-500.0,0.0001452,2]
[335846647,1724531465056,-500.0,0.0001452,2]
[335846648,1724531465066,-500.0,0.0001452,2]
[335846649,1724531465075,-519.65,0.0001452,2]
[335846650,1724531465085,-500.0,0.0001452,2]
[335846651,1724531465096,-500.0,0.0001452,2]
[335846652,1724531465109,-713.04,0.0001452,2]
[335846653,1724531465119,-500.0,0.0001452,2]
[335846654,1724531465132,-530.24,0.0001452,2]
[335846655,1724531465143,-500.0,0.0001452,2]
[335846656,1724531465155,-602.6,0.0001452,2]
[335846657,1724531465165,-500.0,0.0001452,2]
[335846658,1724531465175,-500.0,0.0001452,2]
[335846659,1724531465184,-784.11,0.0001452,2]
[335846660,1724531465194,-500.0,0.0001452,2]
[335846661,1724531465203,-500.0,0.0001452,2]
[335846662,1724531465212,-500.0,0.0001452,2]
[335846663,1724531465222,-500.0,0.0001452,2]
[335846664,1724531465232,-500.0,0.0001452,2]
[335846665,1724531465241,-500.0,0.0001452,2]
[335846666,1724531465250,-500.0,0.0001452,2]
[335846667,1724531465260,-500.0,0.0001452,2]
[335846668,1724531465271,-500.0,0.0001452,2]
[335846669,1724531465280,-500.0,0.0001452,2]
[335846670,1724531465290,-500.0,0.0001452,2]
[335846671,1724531465301,-563.59,0.0001452,2]
[335846672,1724531465310,-891.68,0.0001452,2]
[335846673,1724531465321,-805.77,0.0001452,2]
[335846674,1724531465331,-500.0,0.0001452,2]
[335846675,1724531465340,-500.0,0.0001452,2]
[335846676,1724531465350,-569.79,0.0001452,2]
[335846677,1724531465359,-523.9,0.0001452,2]
[335846678,1724531465369,-562.45,0.0001452,2]
[335846679,1724531465378,-962.65,0.0001452,2]
[335846680,1724531465387,-559.36,0.0001452,2]
[335846681,1724531465396,-500.0,0.0001452,2]
[335846682,1724531465405,-500.0,0.0001452,2]
[335846683,1724531465416,-586.18,0.0001452,2]
[335846684,1724531465425,-807.15,0.0001452,2]
[335846685,1724531465436,-500.0,0.0001452,2]
[335846686,1724531465446,-583.94,0.0001452,2]
[335846687,1724531465458,-533.88,0.0001452,2]
[335846688,1724531465468,-500.0,0.0001452,2]
[335846689,1724531465477,-500.0,0.0001452,2]
[335846690,1724531465486,-760.25,0.0001452,2]
[335846691,1724531465495,-478.76,0.0001452,2]
[335846692,1724531465506,-583.15,0.0001452,2]
[335846693,1724531465516,-500.0,0.0001452,2]
[335846694,1724531465526,-863.95,0.0001452,2]
[335846695,1724531465536,-500.0,0.0001452,2]
[335846696,1724531465546,-520.2,0.0001452,2]
[335846697,1724531465556,-500.0,0.0001452,2]
[335846698,1724531465566,-500.0,0.0001452,2]
[335846699,1724531465575,-500.0,0.0001452,2]
[335846700,1724531465586,-500.0,0.0001452,2]
[335846701,1724531465596,-1365.0,0.0001452,2]
[335846702,1724531465605,-850.08,0.0001452,2]
[335846703,1724531465615,-500.0,0.0001452,2]
[335846704,1724531465624,-500.0,0.0001452,2]
[335846705,1724531465634,-752.47,0.0001452,2]
[335846706,1724531465643,-500.0,0.0001452,2]
[335846707,1724531465653,-500.0,0.0001452,2]
[335846708,1724531465662,-500.0,0.0001452,2]
[335846709,1724531465671,-1109.59,0.0001452,2]
[335846710,1724531465681,-500.0,0.0001452,2]
[335846711,1724531465690,-706.93,0.0001452,2]
[335846712,1724531465700,-500.0,0.0001452,2]
[335846713,1724531465711,-500.0,0.0001452,2]
[335846714,1724531465720,-500.0,0.0001452,2]
[335846715,1724531465731,-500.0,0.0001452,2]
[335846716,1724531465741,-500.0,0.0001452,2]
[335846717,1724531465752,-823.53,0.0001452,2]
[335846718,1724531465763,-576.76,0.0001452,2]
[335846719,1724531465772,-500.0,0.0001452,2]